[Event "MČR v rapid šachu družstev 2019"]
[Site "Teplice, Czech Republic"]
[Date "2019.09.15"]
[Round "3.19"]
[White "Postupa, Martin"]
[Black "Nudcenko, Karel"]
[Result "0-1"]
[TimeControl "15 min. + 5s"]
[WhiteElo "1950"]
[BlackElo "2110"]

1. e4 {[%clk 00:15:08]} {[%emt 00:00:01]} e6 {[%clk 00:15:09]} {[%emt
00:00:01]} 2. d4 {[%clk 00:15:12]} {[%emt 00:00:02]} d5 {[%clk 00:15:13]}
{[%emt 00:00:01]} 3. e5 {[%clk 00:15:16]} c5 {[%clk 00:15:17]} {[%emt
00:00:01]} 4. c3 {[%clk 00:15:19]} {[%emt 00:00:02]} Nc6 {[%clk 00:15:20]}
{[%emt 00:00:01]} 5. Nf3 {[%clk 00:15:23]} {[%emt 00:00:01]} Qb6 {[%clk
00:15:16]} {[%emt 00:00:10]} 6. a3 {[%clk 00:15:23]} {[%emt 00:00:04]} Bd7
{[%clk 00:15:10]} {[%emt 00:00:12]} 7. b4 {[%clk 00:15:20]} {[%emt 00:00:08]}
cxd4 {[%clk 00:14:56]} {[%emt 00:00:18]} 8. cxd4 {[%clk 00:15:24]} {[%emt
00:00:02]} Nge7 {[%clk 00:14:47]} {[%emt 00:00:14]} 9. Bb2 {[%clk 00:15:03]}
{[%emt 00:00:25]} Ng6 {[%clk 00:14:06]} {[%emt 00:00:46]} 10. Bd3 {[%clk
00:14:39]} {[%emt 00:00:30]} Be7 {[%clk 00:13:33]} {[%emt 00:00:37]} 11. O-O
{[%clk 00:14:29]} {[%emt 00:00:15]} O-O {[%clk 00:13:27]} {[%emt 00:00:12]} 12.
Nbd2 {[%clk 00:14:21]} {[%emt 00:00:12]} Rac8 {[%clk 00:12:52]} {[%emt
00:00:40]} 13. Rc1 {[%clk 00:14:15]} {[%emt 00:00:11]} Nb8 {[%clk 00:12:42]}
{[%emt 00:00:15]} 14. Qe2 {[%clk 00:14:12]} {[%emt 00:00:08]} Nf4 {[%clk
00:12:35]} {[%emt 00:00:12]} 15. Qe3 {[%clk 00:14:02]} {[%emt 00:00:15]} Nxd3
{[%clk 00:12:37]} {[%emt 00:00:03]} 16. Qxd3 {[%clk 00:13:42]} {[%emt
00:00:25]} Bb5 {[%clk 00:12:34]} {[%emt 00:00:08]} 17. Qb3 {[%clk 00:13:33]}
{[%emt 00:00:14]} Bxf1 {[%clk 00:12:33]} {[%emt 00:00:07]} 18. Rxf1 {[%clk
00:13:33]} {[%emt 00:00:04]} Nd7 {[%clk 00:12:08]} {[%emt 00:00:31]} 19. h4
{[%clk 00:13:23]} {[%emt 00:00:14]} Rc7 {[%clk 00:12:03]} {[%emt 00:00:11]} 20.
g3 {[%clk 00:13:14]} {[%emt 00:00:14]} Rfc8 {[%clk 00:12:05]} {[%emt 00:00:03]}
21. Ne1 {[%clk 00:13:17]} Qb5 {[%clk 00:11:36]} {[%emt 00:00:35]} 22. Nd3
{[%clk 00:12:56]} {[%emt 00:00:26]} Nb6 {[%clk 00:10:53]} {[%emt 00:00:47]} 23.
Nc5 {[%clk 00:12:36]} {[%emt 00:00:24]} Nc4 {[%clk 00:10:30]} {[%emt 00:00:30]}
24. Nxc4 {[%clk 00:12:32]} {[%emt 00:00:09]} Qxc4 {[%clk 00:10:11]} {[%emt
00:00:23]} 25. Qe3 {[%clk 00:12:21]} {[%emt 00:00:16]} b6 {[%clk 00:09:58]}
{[%emt 00:00:19]} 26. Nd3 {[%clk 00:11:18]} {[%emt 00:01:08]} Qb3 {[%clk
00:09:28]} {[%emt 00:00:34]} 27. Kg2 {[%clk 00:09:05]} {[%emt 00:02:18]} Rc2
{[%clk 00:08:45]} {[%emt 00:00:48]} 28. Rb1 {[%clk 00:09:05]} {[%emt 00:00:05]}
R8c3 {[%clk 00:06:41]} {[%emt 00:02:09]} 29. Bxc3 {[%clk 00:09:08]} {[%emt
00:00:02]} Qxb1 {[%clk 00:06:45]} {[%emt 00:00:01]} 30. Be1 {[%clk 00:09:10]}
{[%emt 00:00:03]} Qd1 {[%clk 00:05:55]} {[%emt 00:00:55]} 31. Nf4 {[%clk
00:09:01]} {[%emt 00:00:14]} Rc1 {[%clk 00:05:20]} {[%emt 00:00:41]} 32. Bd2
{[%clk 00:09:02]} {[%emt 00:00:04]} Qh1# {[%clk 00:05:22]} {[%emt 00:00:02]}
0-1

[Event "MČR v rapid šachu družstev 2019"]
[Site "Teplice, Czech Republic"]
[Date "2019.09.15"]
[Round "3.20"]
[White "Tichy, Lukas"]
[Black "Krouzel, Jaroslav"]
[Result "1/2-1/2"]
[TimeControl "15 min. + 5s"]
[WhiteElo "1869"]
[BlackElo "2068"]

1. e4 {[%clk 00:15:08]} {[%emt 00:00:01]} e6 {[%clk 00:15:08]} {[%emt
00:00:03]} 2. d4 {[%clk 00:15:11]} {[%emt 00:00:01]} d5 {[%clk 00:15:11]}
{[%emt 00:00:02]} 3. e5 {[%clk 00:15:15]} c5 {[%clk 00:15:15]} {[%emt
00:00:01]} 4. c3 {[%clk 00:15:19]} {[%emt 00:00:02]} Nc6 {[%clk 00:15:18]}
{[%emt 00:00:02]} 5. Nf3 {[%clk 00:15:22]} {[%emt 00:00:01]} cxd4 {[%clk
00:15:21]} {[%emt 00:00:02]} 6. cxd4 {[%clk 00:15:25]} {[%emt 00:00:01]} Nge7
{[%clk 00:15:25]} {[%emt 00:00:02]} 7. Bd3 {[%clk 00:15:14]} {[%emt 00:00:16]}
Nf5 {[%clk 00:15:28]} {[%emt 00:00:02]} 8. Bxf5 {[%clk 00:14:47]} {[%emt
00:00:32]} exf5 {[%clk 00:15:31]} {[%emt 00:00:02]} 9. Nc3 {[%clk 00:14:46]}
{[%emt 00:00:05]} Be6 {[%clk 00:15:35]} {[%emt 00:00:02]} 10. O-O {[%clk
00:14:26]} {[%emt 00:00:25]} Be7 {[%clk 00:15:38]} {[%emt 00:00:02]} 11. b3
{[%clk 00:13:27]} {[%emt 00:01:04]} g5 {[%clk 00:15:39]} {[%emt 00:00:04]} 12.
Nb5 {[%clk 00:12:18]} {[%emt 00:01:13]} f4 {[%clk 00:15:00]} {[%emt 00:00:45]}
13. Ba3 {[%clk 00:11:42]} {[%emt 00:00:41]} Bxa3 {[%clk 00:14:47]} {[%emt
00:00:18]} 14. Nxa3 {[%clk 00:11:45]} {[%emt 00:00:02]} Bg4 {[%clk 00:13:59]}
{[%emt 00:00:52]} 15. Nb5 {[%clk 00:11:26]} {[%emt 00:00:24]} O-O {[%clk
00:13:42]} {[%emt 00:00:23]} 16. Qd3 {[%clk 00:10:28]} {[%emt 00:01:02]} h6
{[%clk 00:12:04]} {[%emt 00:01:43]} 17. Rac1 {[%clk 00:09:54]} {[%emt
00:00:39]} Qd7 {[%clk 00:11:54]} {[%emt 00:00:16]} 18. Nd6 {[%clk 00:09:30]}
{[%emt 00:00:28]} Ne7 {[%clk 00:08:50]} {[%emt 00:03:10]} 19. Rc3 {[%clk
00:07:57]} {[%emt 00:01:39]} Nf5 {[%clk 00:08:34]} {[%emt 00:00:20]} 20. Nxf5
{[%clk 00:07:41]} {[%emt 00:00:21]} Bxf5 {[%clk 00:08:36]} {[%emt 00:00:03]} 21.
Qd2 {[%clk 00:07:37]} {[%emt 00:00:09]} Be4 {[%clk 00:08:12]} {[%emt 00:00:29]}
22. Rfc1 {[%clk 00:07:08]} {[%emt 00:00:33]} Rac8 {[%clk 00:07:33]} {[%emt
00:00:43]} 1/2-1/2

[Event "MČR v rapid šachu družstev 2019"]
[Site "Teplice, Czech Republic"]
[Date "2019.09.15"]
[Round "3.21"]
[White "Babicka, Michal"]
[Black "Kourousis, Epaminondas"]
[Result "0-1"]
[TimeControl "15 min. + 5s"]
[WhiteElo "2010"]
[BlackElo "2388"]

1. e4 {[%clk 00:15:07]} {[%emt 00:00:02]} c5 {[%clk 00:15:01]} {[%emt
00:00:09]} 2. Nf3 {[%clk 00:15:10]} {[%emt 00:00:02]} Nc6 {[%clk 00:15:05]}
{[%emt 00:00:02]} 3. Bb5 {[%clk 00:15:14]} {[%emt 00:00:01]} Nf6 {[%clk
00:14:52]} {[%emt 00:00:17]} 4. Bxc6 {[%clk 00:15:10]} {[%emt 00:00:11]} dxc6
{[%clk 00:14:53]} {[%emt 00:00:03]} 5. d3 {[%clk 00:15:13]} {[%emt 00:00:02]}
Qc7 {[%clk 00:14:43]} {[%emt 00:00:14]} 6. h3 {[%clk 00:15:09]} {[%emt
00:00:09]} e5 {[%clk 00:14:43]} {[%emt 00:00:05]} 7. Nc3 {[%clk 00:14:53]}
{[%emt 00:00:22]} h6 {[%clk 00:14:35]} {[%emt 00:00:12]} 8. Be3 {[%clk
00:14:54]} {[%emt 00:00:04]} Be6 {[%clk 00:14:29]} {[%emt 00:00:11]} 9. Qe2
{[%clk 00:14:38]} {[%emt 00:00:20]} Be7 {[%clk 00:13:51]} {[%emt 00:00:44]} 10.
a4 {[%clk 00:14:02]} {[%emt 00:00:43]} a5 {[%clk 00:13:49]} {[%emt 00:00:06]}
11. Nd2 {[%clk 00:12:28]} {[%emt 00:01:38]} O-O-O {[%clk 00:13:32]} {[%emt
00:00:22]} 12. O-O-O {[%clk 00:11:07]} {[%emt 00:01:27]} Nd7 {[%clk 00:12:14]}
{[%emt 00:01:24]} 13. g3 {[%clk 00:10:21]} {[%emt 00:00:50]} f6 {[%clk
00:10:55]} {[%emt 00:01:24]} 14. f4 {[%clk 00:10:19]} {[%emt 00:00:08]} Bd6
{[%clk 00:09:20]} {[%emt 00:01:40]} 15. Qf2 {[%clk 00:10:13]} {[%emt 00:00:10]}
b6 {[%clk 00:09:12]} {[%emt 00:00:14]} 16. f5 {[%clk 00:09:36]} {[%emt
00:00:41]} Bf7 {[%clk 00:09:15]} {[%emt 00:00:02]} 17. g4 {[%clk 00:09:39]}
{[%emt 00:00:02]} Qb7 {[%clk 00:07:51]} {[%emt 00:01:29]} 18. Nc4 {[%clk
00:08:59]} {[%emt 00:00:44]} Be7 {[%clk 00:07:23]} {[%emt 00:00:34]} 19. Na3
{[%clk 00:07:34]} {[%emt 00:01:30]} Nb8 {[%clk 00:07:15]} {[%emt 00:00:13]} 20.
h4 {[%clk 00:07:29]} {[%emt 00:00:11]} Rd4 {[%clk 00:05:54]} {[%emt 00:01:26]}
21. g5 {[%clk 00:07:17]} {[%emt 00:00:17]} h5 {[%clk 00:04:58]} {[%emt
00:01:00]} 22. gxf6 {[%clk 00:07:03]} {[%emt 00:00:19]} Bxf6 {[%clk 00:05:02]}
{[%emt 00:00:01]} 23. Rhg1 {[%clk 00:06:27]} {[%emt 00:00:41]} Na6 {[%clk
00:04:38]} {[%emt 00:00:29]} 24. Rg2 {[%clk 00:05:55]} {[%emt 00:00:37]} Rhd8
{[%clk 00:04:28]} {[%emt 00:00:14]} 25. Rdg1 {[%clk 00:05:08]} {[%emt
00:00:52]} Be8 {[%clk 00:04:26]} {[%emt 00:00:08]} 26. Bg5 {[%clk 00:04:07]}
{[%emt 00:01:06]} Nb4 {[%clk 00:04:13]} {[%emt 00:00:17]} 27. Bxf6 {[%clk
00:03:40]} {[%emt 00:00:33]} gxf6 {[%clk 00:04:17]} {[%emt 00:00:01]} 28. Rg7
{[%clk 00:03:43]} {[%emt 00:00:02]} Qa6 {[%clk 00:03:36]} {[%emt 00:00:46]} 29.
Qe3 {[%clk 00:01:13]} {[%emt 00:02:35]} b5 {[%clk 00:02:45]} {[%emt 00:00:56]}
30. Qh6 {[%clk 00:01:10]} {[%emt 00:00:08]} Nxd3+ {[%clk 00:01:18]} {[%emt
00:01:32]} 31. cxd3 {[%emt 00:00:05]} b4 32. Qxf6 {[%clk 00:00:32]} {[%emt
00:00:43]} bxc3 {[%clk 00:01:13]} {[%emt 00:00:14]} 33. Nc4 {[%emt 00:00:20]}
Rxd3 {[%clk 00:00:21]} {[%emt 00:00:56]} 34. Qxe5 {[%clk 00:00:17]} {[%emt
00:00:06]} cxb2+ {[%clk 00:00:16]} {[%emt 00:00:11]} 35. Kxb2 {[%clk 00:00:18]}
{[%emt 00:00:03]} R3d7 {[%clk 00:00:06]} {[%emt 00:00:15]} 36. Qxc5 {[%clk
00:00:15]} {[%emt 00:00:07]} Qb7+ {[%clk 00:00:07]} {[%emt 00:00:05]} 37. Nb6+
{[%clk 00:00:19]} {[%emt 00:00:01]} Kc7 {[%clk 00:00:11]} 38. Rxd7+ {[%clk
00:00:10]} {[%emt 00:00:14]} Bxd7 {[%clk 00:00:13]} {[%emt 00:00:04]} 39. Qe5+
{[%clk 00:00:12]} {[%emt 00:00:03]} Kxb6 {[%clk 00:00:17]} {[%emt 00:00:01]} 40.
Ka3 {[%clk 00:00:16]} Ka6 {[%emt 00:00:08]} 41. Qc5 {[%clk 00:00:19]} {[%emt
00:00:01]} Rb8 {[%clk 00:00:13]} {[%emt 00:00:08]} 42. Qc4+ {[%clk 00:00:21]}
{[%emt 00:00:02]} Ka7 {[%clk 00:00:16]} {[%emt 00:00:01]} 43. Rg2 {[%clk
00:00:20]} {[%emt 00:00:07]} Qb1 {[%clk 00:00:08]} {[%emt 00:00:14]} 44. Qc3
{[%clk 00:00:24]} Rb4 {[%clk 00:00:09]} {[%emt 00:00:04]} 45. f6 {[%clk
00:00:18]} {[%emt 00:00:11]} Qxe4 {[%clk 00:00:10]} {[%emt 00:00:03]} 46. Rg5
{[%clk 00:00:16]} {[%emt 00:00:07]} Rxa4+ {[%clk 00:00:09]} {[%emt 00:00:07]}
47. Kb2 {[%clk 00:00:20]} Rb4+ {[%clk 00:00:10]} {[%emt 00:00:04]} 48. Ka3
{[%clk 00:00:25]} Ra4+ {[%clk 00:00:14]} 49. Kb2 {[%clk 00:00:29]} Qe2+ {[%clk
00:00:09]} {[%emt 00:00:09]} 50. Kb1 {[%clk 00:00:19]} {[%emt 00:00:15]} Qa2+
{[%clk 00:00:08]} {[%emt 00:00:06]} 51. Kc1 {[%clk 00:00:22]} {[%emt 00:00:02]}
Rc4 {[%clk 00:00:08]} {[%emt 00:00:04]} 52. Rxa5+ Qxa5 {[%clk 00:00:12]} 53.
Qxc4 {[%clk 00:00:31]} Qa1+ {[%clk 00:00:15]} {[%emt 00:00:02]} 54. Kc2 {[%clk
00:00:30]} {[%emt 00:00:06]} Qxf6 {[%clk 00:00:14]} {[%emt 00:00:05]} 55. Qc5+
{[%clk 00:00:32]} {[%emt 00:00:04]} Kb7 {[%clk 00:00:18]} {[%emt 00:00:02]} 56.
Qxh5 {[%clk 00:00:35]} {[%emt 00:00:02]} Qf5+ {[%clk 00:00:20]} {[%emt
00:00:03]} 57. Qxf5 Bxf5+ {[%clk 00:00:24]} 58. Kc3 {[%clk 00:00:43]} Kb6
{[%clk 00:00:26]} {[%emt 00:00:03]} 59. Kd4 {[%emt 00:00:08]} 0-1

[Event "MČR v rapid šachu družstev 2019"]
[Site "Teplice, Czech Republic"]
[Date "2019.09.15"]
[Round "3.22"]
[White "Burdalev, Kirill"]
[Black "Vales, Vaclav"]
[Result "1-0"]
[TimeControl "15 min. + 5s"]
[WhiteElo "2336"]
[BlackElo "2110"]

1. d4 {[%clk 00:15:08]} {[%emt 00:00:02]} d5 {[%clk 00:15:09]} {[%emt
00:00:02]} 2. Bf4 {[%clk 00:15:12]} {[%emt 00:00:01]} c5 {[%clk 00:15:12]} 3.
e3 {[%clk 00:15:17]} Nc6 {[%clk 00:15:15]} {[%emt 00:00:03]} 4. c3 {[%clk
00:15:21]} cxd4 {[%clk 00:15:19]} {[%emt 00:00:02]} 5. exd4 {[%clk 00:15:26]}
Nf6 {[%clk 00:15:22]} {[%emt 00:00:01]} 6. Nd2 {[%clk 00:15:30]} Bf5 {[%clk
00:15:15]} {[%emt 00:00:12]} 7. Qb3 {[%clk 00:15:34]} {[%emt 00:00:01]} Bc8
{[%clk 00:14:45]} {[%emt 00:00:35]} 8. Ngf3 {[%clk 00:15:37]} {[%emt 00:00:03]}
e6 {[%clk 00:14:48]} 9. Bd3 {[%clk 00:15:41]} {[%emt 00:00:01]} Bd6 {[%clk
00:14:51]} {[%emt 00:00:02]} 10. Bg3 {[%clk 00:15:43]} {[%emt 00:00:03]} O-O
{[%clk 00:14:52]} {[%emt 00:00:04]} 11. O-O {[%clk 00:15:47]} {[%emt 00:00:02]}
a6 {[%clk 00:14:43]} {[%emt 00:00:13]} 12. a4 {[%clk 00:15:49]} {[%emt
00:00:03]} Qe7 {[%clk 00:14:03]} {[%emt 00:00:44]} 13. Rfe1 {[%clk 00:15:53]}
{[%emt 00:00:01]} Bd7 {[%clk 00:14:01]} {[%emt 00:00:07]} 14. Ne5 {[%clk
00:15:36]} {[%emt 00:00:22]} Rfb8 {[%clk 00:13:47]} {[%emt 00:00:19]} 15. Qd1
{[%clk 00:14:48]} {[%emt 00:00:54]} Be8 {[%clk 00:13:39]} {[%emt 00:00:13]} 16.
a5 {[%clk 00:14:41]} {[%emt 00:00:12]} Bc7 {[%clk 00:13:29]} {[%emt 00:00:14]}
17. b4 {[%clk 00:14:25]} {[%emt 00:00:22]} g6 {[%clk 00:13:01]} {[%emt
00:00:33]} 18. Nb3 {[%clk 00:14:13]} {[%emt 00:00:16]} Nh5 {[%clk 00:13:01]}
{[%emt 00:00:06]} 19. Nxc6 {[%clk 00:14:10]} {[%emt 00:00:08]} Bxc6 {[%clk
00:12:57]} {[%emt 00:00:09]} 20. Be5 {[%clk 00:13:56]} {[%emt 00:00:18]} Rc8
{[%clk 00:12:37]} {[%emt 00:00:25]} 21. Bxc7 {[%clk 00:13:59]} {[%emt
00:00:02]} Rxc7 {[%clk 00:12:39]} {[%emt 00:00:03]} 22. Nc5 {[%clk 00:14:02]}
{[%emt 00:00:03]} Nf6 {[%clk 00:12:32]} {[%emt 00:00:12]} 23. Qe2 {[%clk
00:13:54]} {[%emt 00:00:12]} Nd7 {[%clk 00:12:29]} {[%emt 00:00:08]} 24. f4
{[%clk 00:13:26]} {[%emt 00:00:33]} Nxc5 {[%clk 00:12:28]} {[%emt 00:00:06]} 25.
bxc5 {[%clk 00:13:29]} {[%emt 00:00:03]} Qf6 {[%clk 00:12:13]} {[%emt
00:00:19]} 26. g3 {[%clk 00:13:31]} {[%emt 00:00:04]} Kg7 {[%clk 00:12:12]}
{[%emt 00:00:06]} 27. h4 {[%clk 00:13:16]} {[%emt 00:00:20]} h6 {[%clk
00:12:08]} {[%emt 00:00:09]} 28. Rab1 {[%clk 00:13:12]} {[%emt 00:00:09]} Rd7
{[%clk 00:11:58]} {[%emt 00:00:15]} 29. Qf2 {[%clk 00:12:33]} {[%emt 00:00:44]}
Qd8 {[%clk 00:11:20]} {[%emt 00:00:43]} 30. Rb6 {[%clk 00:12:30]} {[%emt
00:00:07]} Re7 {[%clk 00:11:16]} {[%emt 00:00:09]} 31. h5 {[%clk 00:11:41]}
{[%emt 00:00:54]} f5 {[%clk 00:09:52]} {[%emt 00:01:29]} 32. hxg6 {[%clk
00:11:32]} {[%emt 00:00:14]} Be8 {[%clk 00:09:29]} {[%emt 00:00:28]} 33. Rbxe6
{[%clk 00:11:27]} {[%emt 00:00:11]} Rxe6 {[%clk 00:09:30]} {[%emt 00:00:04]} 34.
Rxe6 {[%clk 00:11:31]} {[%emt 00:00:01]} Bxg6 {[%clk 00:09:19]} {[%emt
00:00:16]} 35. Qe3 {[%clk 00:11:32]} {[%emt 00:00:04]} 1-0

[Event "MČR v rapid šachu družstev 2019"]
[Site "Teplice, Czech Republic"]
[Date "2019.09.15"]
[Round "3.23"]
[White "Janda, Zdenek"]
[Black "Pribyl, Josef"]
[Result "0-1"]
[TimeControl "15 min. + 5s"]
[WhiteElo "2008"]
[BlackElo "2285"]

1. d4 {[%clk 00:15:07]} {[%emt 00:00:02]} Nf6 {[%clk 00:15:09]} {[%emt
00:00:02]} 2. Nf3 {[%clk 00:15:09]} {[%emt 00:00:02]} g6 {[%clk 00:15:13]} 3.
h3 {[%clk 00:15:05]} {[%emt 00:00:10]} c5 {[%clk 00:15:13]} {[%emt 00:00:05]} 4.
c3 {[%clk 00:14:57]} {[%emt 00:00:14]} b6 {[%clk 00:15:13]} {[%emt 00:00:04]} 5.
g3 {[%clk 00:14:46]} {[%emt 00:00:17]} Bb7 {[%clk 00:15:16]} {[%emt 00:00:02]}
6. Bg2 {[%clk 00:14:50]} Bg7 {[%clk 00:15:20]} 7. O-O {[%clk 00:14:48]} {[%emt
00:00:06]} O-O {[%clk 00:15:23]} {[%emt 00:00:02]} 8. Ne5 {[%clk 00:14:30]}
{[%emt 00:00:23]} Bxg2 {[%clk 00:15:23]} {[%emt 00:00:05]} 9. Kxg2 {[%clk
00:14:34]} {[%emt 00:00:01]} d6 {[%clk 00:15:21]} {[%emt 00:00:08]} 10. Nd3
{[%clk 00:14:31]} {[%emt 00:00:08]} Nbd7 {[%clk 00:15:19]} {[%emt 00:00:06]} 11.
Nd2 {[%clk 00:14:01]} {[%emt 00:00:35]} Qc7 {[%clk 00:15:20]} {[%emt 00:00:04]}
12. e4 {[%clk 00:13:56]} {[%emt 00:00:11]} Rfc8 {[%clk 00:15:00]} {[%emt
00:00:25]} 13. d5 {[%clk 00:13:52]} {[%emt 00:00:09]} Ne5 {[%clk 00:14:45]}
{[%emt 00:00:20]} 14. Nxe5 {[%clk 00:13:43]} {[%emt 00:00:14]} dxe5 {[%clk
00:14:49]} 15. c4 {[%clk 00:13:37]} {[%emt 00:00:11]} a6 {[%clk 00:14:50]}
{[%emt 00:00:04]} 16. b3 {[%clk 00:13:41]} b5 {[%clk 00:14:54]} {[%emt
00:00:02]} 17. Bb2 {[%clk 00:13:44]} {[%emt 00:00:01]} Ne8 {[%clk 00:14:54]}
{[%emt 00:00:04]} 18. Qe2 {[%clk 00:13:34]} {[%emt 00:00:16]} Rab8 {[%clk
00:14:57]} {[%emt 00:00:02]} 19. Rac1 {[%clk 00:13:30]} {[%emt 00:00:09]} Nd6
{[%clk 00:14:51]} {[%emt 00:00:10]} 20. f4 {[%clk 00:13:18]} {[%emt 00:00:18]}
exf4 {[%clk 00:14:36]} {[%emt 00:00:20]} 21. Bxg7 {[%clk 00:13:08]} {[%emt
00:00:14]} Kxg7 {[%clk 00:14:39]} {[%emt 00:00:03]} 22. gxf4 {[%clk 00:12:57]}
{[%emt 00:00:16]} e6 {[%clk 00:14:32]} {[%emt 00:00:12]} 23. Qg4 {[%clk
00:10:14]} {[%emt 00:02:47]} Re8 {[%clk 00:14:17]} {[%emt 00:00:21]} 24. e5
{[%clk 00:09:45]} {[%emt 00:00:35]} Nf5 {[%clk 00:14:20]} {[%emt 00:00:01]} 25.
Rce1 {[%clk 00:09:44]} {[%emt 00:00:06]} bxc4 {[%clk 00:14:20]} {[%emt
00:00:05]} 26. bxc4 {[%clk 00:09:27]} {[%emt 00:00:22]} Rb2 {[%clk 00:14:23]}
{[%emt 00:00:01]} 27. Rf2 {[%clk 00:09:28]} {[%emt 00:00:04]} Qb7 {[%clk
00:14:11]} {[%emt 00:00:18]} 28. Ne4 {[%clk 00:08:33]} {[%emt 00:01:00]} exd5
{[%clk 00:14:12]} {[%emt 00:00:04]} 29. Nf6 {[%clk 00:08:15]} {[%emt 00:00:24]}
dxc4+ {[%clk 00:14:00]} {[%emt 00:00:16]} 30. Kg1 {[%clk 00:08:15]} {[%emt
00:00:04]} Rd8 {[%clk 00:13:50]} {[%emt 00:00:15]} 31. Qg5 {[%clk 00:07:39]}
{[%emt 00:00:42]} Rdd2 {[%clk 00:12:57]} {[%emt 00:00:58]} 32. Ne4 {[%clk
00:07:04]} {[%emt 00:00:40]} Rd4 {[%clk 00:11:54]} {[%emt 00:01:07]} 33. Qf6+
{[%clk 00:06:31]} {[%emt 00:00:38]} Kg8 {[%clk 00:11:47]} {[%emt 00:00:12]} 34.
Rxb2 {[%clk 00:06:12]} {[%emt 00:00:25]} Qxb2 {[%clk 00:11:49]} {[%emt
00:00:03]} 35. Ng5 {[%clk 00:05:55]} {[%emt 00:00:21]} Rd7 {[%clk 00:11:14]}
{[%emt 00:00:40]} 36. Nf3 {[%clk 00:05:12]} {[%emt 00:00:49]} Qc3 {[%clk
00:10:27]} {[%emt 00:00:51]} 37. Qc6 {[%clk 00:04:40]} {[%emt 00:00:38]} Nd4
{[%clk 00:09:36]} {[%emt 00:00:56]} 38. Qxd7 {[%clk 00:04:07]} {[%emt
00:00:38]} Nxf3+ {[%clk 00:09:39]} {[%emt 00:00:02]} 39. Kf2 {[%clk 00:04:09]}
{[%emt 00:00:03]} Qxe1+ {[%clk 00:08:53]} {[%emt 00:00:51]} 40. Kxf3 {[%clk
00:04:13]} Qf1+ {[%clk 00:08:54]} {[%emt 00:00:05]} 41. Kg3 {[%clk 00:03:42]}
{[%emt 00:00:35]} Qd3+ {[%clk 00:08:52]} {[%emt 00:00:07]} 0-1

[Event "MČR v rapid šachu družstev 2019"]
[Site "Teplice, Czech Republic"]
[Date "2019.09.15"]
[Round "3.24"]
[White "Benes, Petr"]
[Black "Havranek, Tomas"]
[Result "1-0"]
[TimeControl "15 min. + 5s"]
[WhiteElo "2147"]
[BlackElo "2023"]

1. Nf3 {[%clk 00:15:09]} {[%emt 00:03:25]} Nf6 {[%clk 00:15:05]} {[%emt
00:00:08]} 2. g3 {[%clk 00:15:03]} {[%emt 00:00:11]} g6 {[%clk 00:14:48]}
{[%emt 00:00:21]} 3. b3 {[%clk 00:15:02]} {[%emt 00:00:06]} Bg7 {[%clk
00:14:49]} {[%emt 00:00:04]} 4. Bb2 {[%clk 00:15:03]} {[%emt 00:00:04]} O-O
{[%clk 00:14:40]} {[%emt 00:00:14]} 5. Bg2 {[%clk 00:15:02]} {[%emt 00:00:07]}
c5 {[%clk 00:14:29]} {[%emt 00:00:15]} 6. O-O {[%clk 00:14:41]} {[%emt
00:00:26]} Nc6 {[%clk 00:14:13]} {[%emt 00:00:21]} 7. c4 {[%clk 00:14:16]}
{[%emt 00:00:31]} d5 {[%clk 00:13:02]} {[%emt 00:01:15]} 8. cxd5 {[%clk
00:14:13]} {[%emt 00:00:08]} Nxd5 {[%clk 00:13:03]} {[%emt 00:00:04]} 9. Bxg7
{[%clk 00:14:12]} {[%emt 00:00:06]} Kxg7 {[%clk 00:13:07]} {[%emt 00:00:01]} 10.
Qc2 {[%clk 00:14:01]} {[%emt 00:00:16]} b6 {[%clk 00:12:09]} {[%emt 00:01:04]}
11. Qb2+ {[%clk 00:14:02]} {[%emt 00:00:04]} Kg8 {[%clk 00:12:10]} {[%emt
00:00:04]} 12. d4 {[%clk 00:13:46]} {[%emt 00:00:20]} cxd4 {[%clk 00:09:32]}
{[%emt 00:02:43]} 13. Nxd4 {[%clk 00:13:48]} {[%emt 00:00:03]} Nxd4 {[%clk
00:08:08]} {[%emt 00:01:29]} 14. Qxd4 {[%clk 00:13:51]} {[%emt 00:00:02]} Bb7
{[%clk 00:08:00]} {[%emt 00:00:14]} 15. Rd1 {[%clk 00:12:38]} {[%emt 00:01:17]}
e6 {[%clk 00:07:50]} {[%emt 00:00:15]} 16. Qe5 {[%clk 00:09:44]} {[%emt
00:02:59]} Qb8 {[%clk 00:06:15]} {[%emt 00:01:40]} 17. Qb2 {[%clk 00:09:42]}
{[%emt 00:00:08]} Rd8 {[%clk 00:06:07]} {[%emt 00:00:12]} 18. Na3 {[%clk
00:09:36]} {[%emt 00:00:11]} Qc7 {[%clk 00:05:29]} {[%emt 00:00:42]} 19. Rac1
{[%clk 00:08:40]} {[%emt 00:01:01]} Qe7 {[%clk 00:05:33]} {[%emt 00:00:02]} 20.
Nc4 {[%clk 00:08:28]} {[%emt 00:00:17]} Rac8 {[%clk 00:05:21]} {[%emt
00:00:16]} 21. h4 {[%clk 00:07:56]} {[%emt 00:00:38]} h5 {[%clk 00:05:18]}
{[%emt 00:00:08]} 22. Bf3 {[%clk 00:06:36]} {[%emt 00:01:25]} Nb4 {[%clk
00:04:22]} {[%emt 00:01:01]} 23. Bxb7 {[%clk 00:05:32]} {[%emt 00:01:10]} Qxb7
{[%clk 00:03:46]} {[%emt 00:00:40]} 24. Rxd8+ {[%clk 00:03:57]} {[%emt
00:01:40]} Rxd8 {[%clk 00:03:48]} {[%emt 00:00:03]} 25. Qf6 {[%clk 00:04:01]}
Rc8 {[%clk 00:02:44]} {[%emt 00:01:09]} 26. Rd1 {[%clk 00:04:00]} {[%emt
00:00:07]} Nd5 {[%clk 00:02:47]} {[%emt 00:00:02]} 27. Qe5 {[%clk 00:03:21]}
{[%emt 00:00:44]} Qc7 {[%clk 00:02:41]} {[%emt 00:00:11]} 28. Qg5 {[%clk
00:02:53]} {[%emt 00:00:32]} Nc3 {[%clk 00:02:32]} {[%emt 00:00:14]} 29. Re1
{[%clk 00:02:15]} {[%emt 00:00:44]} Nxa2 {[%clk 00:02:31]} {[%emt 00:00:05]} 30.
e4 {[%clk 00:02:07]} {[%emt 00:00:13]} Nc3 {[%clk 00:02:23]} {[%emt 00:00:14]}
31. Re3 {[%clk 00:02:02]} {[%emt 00:00:10]} Na2 {[%clk 00:02:10]} {[%emt
00:00:17]} 32. Rd3 {[%clk 00:01:39]} {[%emt 00:00:27]} Nb4 {[%clk 00:02:07]}
{[%emt 00:00:08]} 33. Rd2 {[%clk 00:01:38]} {[%emt 00:00:07]} Nc6 {[%clk
00:02:03]} {[%emt 00:00:10]} 34. e5 {[%clk 00:01:12]} {[%emt 00:00:30]} a5
{[%clk 00:01:42]} {[%emt 00:00:26]} 35. f4 {[%clk 00:00:57]} {[%emt 00:00:21]}
Nb4 {[%clk 00:01:36]} {[%emt 00:00:11]} 36. Kh2 {[%clk 00:00:48]} {[%emt
00:00:14]} Nd5 {[%clk 00:01:37]} {[%emt 00:00:03]} 37. f5 {[%clk 00:00:46]}
{[%emt 00:00:07]} exf5 {[%clk 00:01:29]} {[%emt 00:00:13]} 38. Rxd5 {[%emt
00:00:09]} 1-0